fUST/lending_fUST_20240819
["ID","MTS","AMOUNT","RATE_DAILY","PERIOD"]
[335231035,1723999849806,-500.0,0.00016712,2]
[335231036,1723999849818,-151.0,0.00016712,2]
[335231037,1723999849827,-154.324442,0.00016712,2]
[335231038,1723999849838,-759.09,0.00016712,2]
[335231039,1723999849848,-500.0,0.00016712,2]
[335231040,1723999849857,-500.0,0.00016712,2]
[335231041,1723999849866,-151.0,0.00016712,2]
[335231042,1723999849877,-151.0,0.00016712,2]
[335231043,1723999849888,-500.0,0.00016712,2]
[335231044,1723999849898,-510.4719116,0.00016712,2]
[335231045,1723999849909,-151.0,0.00016712,2]
[335231046,1723999849919,-151.0,0.00016712,2]
[335231047,1723999849929,-151.0,0.00016712,2]
[335231048,1723999849939,-151.0,0.00016712,2]
[335231049,1723999849949,-500.0,0.00016712,2]
[335231050,1723999849959,-151.0,0.00016712,2]
[335231051,1723999849969,-151.0,0.00016712,2]
[335231052,1723999849979,-509.0240187,0.00016712,2]
[335231053,1723999849989,-500.0,0.00016712,2]
[335231054,1723999850001,-500.0,0.00016712,2]
[335231055,1723999850011,-814.14,0.00016712,2]
[335231056,1723999850023,-500.0,0.00016712,2]
[335231057,1723999850033,-500.0,0.00016712,2]
[335231058,1723999850043,-510.04064096,0.00016712,2]
[335231059,1723999850053,-500.0,0.00016712,2]
[335231060,1723999850064,-500.0,0.00016712,2]
[335231061,1723999850074,-500.0,0.00016712,2]
[335231062,1723999850084,-500.0,0.00016712,2]
[335231063,1723999850094,-500.0,0.00016712,2]
[335231064,1723999850105,-500.0,0.00016712,2]
[335231065,1723999850116,-151.0,0.00016712,2]
[335231066,1723999850128,-665.66,0.00016712,2]
[335231067,1723999850138,-151.0,0.00016712,2]
[335231068,1723999850148,-500.0,0.00016712,2]
[335231069,1723999850158,-598.23,0.00016712,2]
[335231070,1723999850168,-500.0,0.00016712,2]
[335231071,1723999850179,-500.0,0.00016712,2]
[335231072,1723999850190,-650.45,0.00016712,2]
[335231073,1723999850199,-500.0,0.00016712,2]
[335231074,1723999850209,-500.0,0.00016712,2]
[335231075,1723999850229,-500.0,0.00016712,2]
[335231076,1723999850240,-569.70870302,0.00016712,2]
[335231077,1723999850251,-500.0,0.00016712,2]
[335231078,1723999850262,-547.66,0.00016712,2]
[335231079,1723999850272,-500.0,0.00016712,2]
[335231080,1723999850281,-500.0,0.00016712,2]
[335231081,1723999850293,-1028.86,0.00016712,2]
[335231082,1723999850304,-500.0,0.00016712,2]
[335231083,1723999850313,-500.0,0.00016712,2]
[335231084,1723999850324,-500.0,0.00016712,2]
[335231085,1723999850334,-555.96616486,0.00016712,2]
[335231086,1723999850344,-312.40854363,0.00016712,2]
[335231087,1723999850355,-688.4,0.00016712,2]
[335231088,1723999850365,-1057.61,0.00016712,2]
[335231089,1723999850375,-500.0,0.00016712,2]
[335231090,1723999850386,-505.16786915,0.00016712,2]
[335231091,1723999850490,-500.0,0.00016712,2]
[335231092,1723999850500,-500.0,0.00016712,2]
[335231093,1723999850510,-500.0,0.00016712,2]
[335231094,1723999850520,-500.0,0.00016712,2]
[335231095,1723999850530,-500.0,0.00016712,2]
[335231096,1723999850540,-500.0,0.00016712,2]
[335231097,1723999850549,-469.84670545,0.00016712,2]
[335231098,1723999850560,-682.35,0.00016712,2]
[335231099,1723999850570,-151.0,0.00016712,2]
[335231100,1723999850581,-183.82544,0.00016712,2]
[335231101,1723999850592,-505.24686272,0.00016712,2]
[335231102,1723999850603,-210.28986932,0.00016712,2]
[335231103,1723999850613,-500.0,0.00016712,2]
[335231104,1723999850622,-500.0,0.00016712,2]
[335231105,1723999850632,-513.76259266,0.00016712,2]
[335231106,1723999850642,-725.37,0.00016712,2]
[335231107,1723999850652,-513.94036456,0.00016712,2]
[335231108,1723999850662,-448.51956165,0.00016712,2]
[335231109,1723999850671,-261.95080758,0.00016712,2]
[335231110,1723999850682,-500.0,0.00016712,2]
[335231111,1723999850692,-500.0,0.00016712,2]
[335231112,1723999850703,-500.0,0.00016712,2]
[335231113,1723999850721,-500.0,0.00016712,2]
[335231114,1723999850732,-500.0,0.00016712,2]
[335231115,1723999850742,-500.0,0.00016712,2]
[335231116,1723999850751,-503.5388865,0.00016712,2]
[335231117,1723999850762,-520.35,0.00016712,2]
[335231118,1723999850772,-509.86420055,0.00016712,2]
[335231119,1723999850782,-500.0,0.00016712,2]
[335231120,1723999850792,-509.09326815,0.00016712,2]
[335231121,1723999850801,-500.0,0.00016712,2]
[335231122,1723999850811,-503.1800564,0.00016712,2]
[335231123,1723999850820,-500.0,0.00016712,2]
[335231124,1723999850830,-500.0,0.00016712,2]
[335231125,1723999850840,-500.0,0.00016712,2]
[335231126,1723999850849,-500.0,0.00016712,2]
[335231127,1723999850859,-500.0,0.00016712,2]
[335231128,1723999850868,-500.0,0.00016712,2]
[335231129,1723999850879,-513.1321398,0.00016712,2]
[335231130,1723999850889,-1337.56,0.00016712,2]
[335231131,1723999850899,-530.88077677,0.00016712,2]
[335231132,1723999850909,-227.66897349,0.00016712,2]
[335231133,1723999850919,-500.0,0.00016712,2]
[335231134,1723999850928,-509.8537679,0.00016712,2]
[335231135,1723999850938,-500.0,0.00016712,2]
[335231136,1723999850947,-510.71326632,0.00016712,2]
[335231137,1723999850958,-500.0,0.00016712,2]
[335231138,1723999850969,-500.0,0.00016712,2]
[335231139,1723999850979,-500.0,0.00016712,2]
[335231140,1723999850989,-511.01685736,0.00016712,2]
[335231141,1723999851000,-572.75,0.00016712,2]
[335231142,1723999851010,-500.0,0.00016712,2]
[335231143,1723999851020,-573.41,0.00016712,2]
[335231144,1723999851031,-500.0,0.00016712,2]
[335231145,1723999851043,-500.0,0.00016712,2]
[335231146,1723999851053,-549.38946756,0.00016712,2]
[335231147,1723999851063,-500.0,0.00016712,2]
[335231148,1723999851073,-500.0,0.00016712,2]
[335231149,1723999851083,-500.0,0.00016712,2]
[335231150,1723999851092,-500.0,0.00016712,2]
[335231151,1723999851103,-500.0,0.00016712,2]
[335231152,1723999851112,-568.95,0.00016712,2]
[335231153,1723999851122,-500.0,0.00016712,2]
[335231154,1723999851133,-504.84887392,0.00016712,2]
[335231155,1723999851143,-500.0,0.00016712,2]
[335231156,1723999851153,-500.0,0.00016712,2]
[335231157,1723999851164,-661.53,0.00016712,2]
[335231158,1723999851175,-562.7467592,0.00016712,2]
[335231159,1723999851185,-587.16184139,0.00016712,2]
[335231160,1723999851195,-500.0,0.00016712,2]
[335231161,1723999851205,-678.58,0.00016712,2]
[335231162,1723999851217,-500.0,0.00016712,2]
[335231163,1723999851227,-500.0,0.00016712,2]
[335231164,1723999851237,-636.84387548,0.00016712,2]
[335231165,1723999851247,-945.39,0.00016712,2]
[335231166,1723999851259,-628.41,0.00016712,2]
[335231167,1723999851270,-962.07,0.00016712,2]
[335231168,1723999851282,-500.0,0.00016712,2]
[335231169,1723999851294,-500.0,0.00016712,2]
[335231170,1723999851304,-500.0,0.00016712,2]
[335231171,1723999851315,-500.0,0.00016712,2]
[335231172,1723999851325,-500.0,0.00016712,2]
[335231173,1723999851335,-500.0,0.00016712,2]
[335231174,1723999851345,-500.0,0.00016712,2]
[335231175,1723999851355,-500.0,0.00016712,2]
[335231176,1723999851364,-500.0,0.00016712,2]
[335231177,1723999851376,-504.97,0.00016712,2]
[335231178,1723999851385,-500.0,0.00016712,2]
[335231179,1723999851396,-500.0,0.00016712,2]
[335231180,1723999851407,-702.35,0.00016712,2]
[335231181,1723999851417,-500.0,0.00016712,2]
[335231182,1723999851427,-500.0,0.00016712,2]
[335231183,1723999851438,-502.12097442,0.00016712,2]
[335231184,1723999851449,-500.0,0.00016712,2]
[335231185,1723999851458,-712.8,0.00016712,2]
[335231186,1723999851468,-500.0,0.00016712,2]
[335231187,1723999851479,-500.0,0.00016712,2]
[335231188,1723999851491,-721.2,0.00016712,2]
[335231189,1723999851500,-151.0,0.00016712,2]
[335231190,1723999851509,-151.0,0.00016712,2]
[335231191,1723999851519,-154.870802,0.00016712,2]
[335231192,1723999851528,-500.0,0.00016712,2]
[335231193,1723999851537,-151.0,0.00016712,2]
[335231194,1723999851547,-151.0,0.00016712,2]
[335231195,1723999851556,-500.0,0.00016712,2]
[335231196,1723999851565,-500.0,0.00016712,2]
[335231197,1723999851574,-500.0,0.00016712,2]
[335231198,1723999851584,-500.0,0.00016712,2]
[335231199,1723999851594,-896.83,0.00016712,2]
[335231200,1723999851603,-500.0,0.00016712,2]
[335231201,1723999851612,-500.0,0.00016712,2]
[335231202,1723999851622,-500.0,0.00016712,2]
[335231203,1723999851631,-500.0,0.00016712,2]
[335231204,1723999851641,-500.0,0.00016712,2]
[335231205,1723999851650,-500.0,0.00016712,2]
[335231206,1723999851660,-500.0,0.00016712,2]
[335231207,1723999851669,-151.0,0.00016712,2]
[335231208,1723999851679,-151.0,0.00016712,2]
[335231209,1723999851689,-794.6,0.00016712,2]
[335231210,1723999851698,-500.0,0.00016712,2]
[335231211,1723999851707,-500.0,0.00016712,2]
[335231212,1723999851718,-500.0,0.00016712,2]
[335231213,1723999851728,-500.0,0.00016712,2]
[335231214,1723999851738,-500.0,0.00016712,2]
[335231215,1723999851747,-500.0,0.00016712,2]
[335231216,1723999851756,-500.0,0.00016712,2]
[335231217,1723999851766,-500.0,0.00016712,2]
[335231218,1723999851776,-500.0,0.00016712,2]
[335231219,1723999851786,-500.0,0.00016712,2]
[335231220,1723999851795,-500.0,0.00016712,2]
[335231221,1723999851805,-500.0,0.00016712,2]
[335231222,1723999851814,-500.0,0.00016712,2]
[335231223,1723999851823,-460.37914527,0.00016712,2]
[335231224,1723999851833,-500.0,0.00016712,2]
[335231225,1723999851843,-500.0,0.00016712,2]
[335231226,1723999851852,-500.0,0.00016712,2]
[335231227,1723999851862,-475.592611,0.00016712,2]
[335231228,1723999851872,-525.32,0.00016712,2]
[335231229,1723999851882,-475.592611,0.00016712,2]
[335231230,1723999851892,-500.0,0.00016712,2]
[335231231,1723999851902,-500.0,0.00016712,2]
[335231232,1723999851911,-358.63815817,0.00016712,2]
[335231233,1723999851921,-500.0,0.00016712,2]
[335231234,1723999851930,-475.592611,0.00016712,2]
[335231235,1723999851940,-475.592611,0.00016712,2]
[335231236,1723999851950,-558.34,0.00016712,2]
[335231237,1723999851960,-500.0,0.00016712,2]
[335231238,1723999851969,-500.0,0.00016712,2]
[335231239,1723999851979,-500.0,0.00016712,2]
[335231240,1723999851989,-500.0,0.00016712,2]
[335231241,1723999851998,-500.0,0.00016712,2]
[335231242,1723999852008,-500.0,0.00016712,2]
[335231243,1723999852017,-500.0,0.00016712,2]
[335231244,1723999852027,-1000.0,0.00016712,2]
[335231245,1723999852036,-500.0,0.00016712,2]
[335231246,1723999852045,-500.0,0.00016712,2]
[335231247,1723999852055,-501.93888408,0.00016712,2]
[335231248,1723999852064,-610.10930005,0.00016712,2]
[335231249,1723999852073,-500.0,0.00016712,2]
[335231250,1723999852083,-487.89394,0.00016712,2]
[335231251,1723999852092,-500.0,0.00016712,2]
[335231252,1723999852101,-500.0,0.00016712,2]
[335231253,1723999852111,-487.89394,0.00016712,2]
[335231254,1723999852120,-500.0,0.00016712,2]
[335231255,1723999852129,-500.0,0.00016712,2]
[335231256,1723999852139,-487.89394,0.00016712,2]
[335231257,1723999852149,-487.89394,0.00016712,2]
[335231258,1723999852158,-772.16,0.00016712,2]
[335231259,1723999852167,-189.611065,0.00016712,2]
[335231260,1723999852177,-189.611065,0.00016712,2]
[335231261,1723999852187,-500.0,0.00016712,2]
[335231262,1723999852196,-500.0,0.00016712,2]
[335231263,1723999852287,-500.0,0.00016712,2]
[335231264,1723999852305,-189.611065,0.00016712,2]
[335231265,1723999852315,-189.611065,0.00016712,2]
[335231266,1723999852324,-500.0,0.00016712,2]
[335231267,1723999852333,-500.0,0.00016712,2]
[335231268,1723999852342,-500.0,0.00016712,2]
[335231269,1723999852352,-500.0,0.00016712,2]
[335231270,1723999852361,-500.0,0.00016712,2]
[335231271,1723999852371,-260.66261459,0.00016712,2]
[335231272,1723999852380,-500.0,0.00016712,2]
[335231273,1723999852390,-1031.49,0.00016712,2]
[335231274,1723999852399,-500.0,0.00016712,2]
[335231275,1723999852409,-736.4,0.00016712,2]
[335231276,1723999852418,-640.56,0.00016712,2]
[335231277,1723999852428,-151.0,0.00016712,2]
[335231278,1723999852437,-151.0,0.00016712,2]
[335231279,1723999852447,-500.0,0.00016712,2]
[335231280,1723999852457,-866.79,0.00016712,2]
[335231281,1723999852466,-500.0,0.00016712,2]
[335231282,1723999852475,-151.0,0.00016712,2]
[335231283,1723999852485,-757.9,0.00016712,2]
[335231284,1723999852495,-151.0,0.00016712,2]
[335231285,1723999852503,-500.0,0.00016712,2]
[335231286,1723999852513,-500.0,0.00016712,2]
[335231287,1723999852522,-500.0,0.00016712,2]
[335231288,1723999852532,-817.88,0.00016712,2]
[335231289,1723999852541,-500.0,0.00016712,2]
[335231290,1723999852550,-500.0,0.00016712,2]
[335231291,1723999852560,-500.0,0.00016712,2]
[335231292,1723999852569,-500.0,0.00016712,2]
[335231293,1723999852579,-500.0,0.00016712,2]
[335231294,1723999852588,-383.34210581,0.00016712,2]
[335231295,1723999852598,-500.0,0.00016712,2]
[335231296,1723999852609,-500.0,0.00016712,2]
[335231297,1723999852618,-500.0,0.00016712,2]
[335231298,1723999852628,-500.0,0.00016712,2]
[335231299,1723999852638,-1288.38,0.00016712,2]
[335231300,1723999852647,-500.0,0.00016712,2]
[335231301,1723999852656,-500.0,0.00016712,2]
[335231302,1723999852666,-501.05059056,0.00016712,2]
[335231303,1723999852675,-500.0,0.00016712,2]
[335231304,1723999852685,-571.39,0.00016712,2]
[335231305,1723999852695,-648.34,0.00016712,2]
[335231306,1723999852704,-500.0,0.00016712,2]
[335231307,1723999852715,-500.0,0.00016712,2]
[335231308,1723999852724,-500.0,0.00016712,2]
[335231309,1723999852734,-500.0,0.00016712,2]
[335231310,1723999852743,-500.0,0.00016712,2]
[335231311,1723999852753,-500.0,0.00016712,2]
[335231312,1723999852762,-500.0,0.00016712,2]
[335231313,1723999852771,-692.09,0.00016712,2]
[335231314,1723999852781,-766.69,0.00016712,2]
[335231315,1723999852791,-500.0,0.00016712,2]
[335231316,1723999852801,-500.0,0.00016712,2]
[335231317,1723999852810,-500.0,0.00016712,2]
[335231318,1723999852819,-500.0,0.00016712,2]
[335231319,1723999852829,-500.0,0.00016712,2]
[335231320,1723999852838,-310.688403,0.00016712,2]
[335231321,1723999852847,-310.688403,0.00016712,2]
[335231322,1723999852858,-500.0,0.00016712,2]
[335231323,1723999852867,-1043.99,0.00016712,2]
[335231324,1723999852876,-500.0,0.00016712,2]
[335231325,1723999852886,-500.0,0.00016712,2]
[335231326,1723999852895,-310.688403,0.00016712,2]
[335231327,1723999852904,-514.17707633,0.00016712,2]
[335231328,1723999852913,-310.688403,0.00016712,2]
[335231329,1723999852923,-500.0,0.00016712,2]
[335231330,1723999852932,-1016.59,0.00016712,2]
[335231331,1723999852941,-500.0,0.00016712,2]
[335231332,1723999852951,-522.37444784,0.00016712,2]
[335231333,1723999852961,-594.0,0.00016712,2]
[335231334,1723999852970,-500.0,0.00016712,2]
[335231335,1723999852979,-1013.64333,0.00016712,2]
[335231336,1723999852989,-1013.64333,0.00016712,2]
[335231337,1723999852998,-500.0,0.00016712,2]
[335231338,1723999853008,-500.0,0.00016712,2]
[335231339,1723999853018,-500.0,0.00016712,2]
[335231340,1723999853027,-1461.634586,0.00016712,2]
[335231341,1723999853037,-1212.69,0.00016712,2]
[335231342,1723999853046,-1013.64333,0.00016712,2]
[335231343,1723999853055,-500.0,0.00016712,2]
[335231344,1723999853065,-1461.634586,0.00016712,2]
[335231345,1723999853074,-1013.64333,0.00016712,2]
[335231346,1723999853084,-500.0,0.00016712,2]
[335231347,1723999853093,-500.0,0.00016712,2]
[335231348,1723999853103,-500.0,0.00016712,2]
[335231349,1723999853112,-461.50916637,0.00016712,2]
[335231350,1723999853122,-649.0,0.00016712,2]
[335231351,1723999853132,-1461.634586,0.00016712,2]
[335231352,1723999853141,-1461.634586,0.00016712,2]
[335231353,1723999853150,-500.0,0.00016712,2]
[335231354,1723999853160,-500.0,0.00016712,2]
[335231355,1723999853169,-494.2044068,0.00016712,2]
[335231356,1723999853179,-500.0,0.00016712,2]
[335231357,1723999853189,-1212.07,0.00016712,2]
[335231358,1723999853199,-200.0,0.00016712,2]
[335231359,1723999853209,-634.97,0.00016712,2]
[335231360,1723999853221,-500.0,0.00016712,2]
[335231361,1723999853230,-500.0,0.00016712,2]
[335231362,1723999853240,-500.0,0.00016712,2]
[335231363,1723999853249,-500.0,0.00016712,2]
[335231364,1723999853260,-500.0,0.00016712,2]
[335231365,1723999853269,-500.0,0.00016712,2]
[335231366,1723999853279,-697.88,0.00016712,2]
[335231367,1723999853288,-500.0,0.00016712,2]
[335231368,1723999853299,-500.0,0.00016712,2]
[335231369,1723999853309,-500.0,0.00016712,2]
[335231370,1723999853318,-513.26,0.00016712,2]
[335231371,1723999853328,-500.0,0.00016712,2]
[335231372,1723999853338,-682.7,0.00016712,2]
[335231373,1723999853347,-500.0,0.00016712,2]
[335231374,1723999853356,-434.24993688,0.00016712,2]
[335231375,1723999853365,-500.0,0.00016712,2]
[335231376,1723999853374,-500.0,0.00016712,2]
[335231377,1723999853384,-500.0,0.00016712,2]
[335231378,1723999853394,-4145.13,0.00016712,2]
[335231379,1723999853403,-500.0,0.00016712,2]
[335231380,1723999853412,-500.0,0.00016712,2]
[335231381,1723999853422,-500.0,0.00016712,2]
[335231382,1723999853431,-500.0,0.00016712,2]
[335231383,1723999853440,-697.63,0.00016712,2]
[335231384,1723999853449,-155.97998199,0.00016712,2]
[335231385,1723999853459,-500.0,0.00016712,2]
[335231386,1723999853468,-500.0,0.00016712,2]
[335231387,1723999853478,-500.0,0.00016712,2]
[335231388,1723999853488,-560.93,0.00016712,2]
[335231389,1723999853499,-659.26,0.00016712,2]
[335231390,1723999853508,-500.0,0.00016712,2]
[335231391,1723999853517,-500.0,0.00016712,2]
[335231392,1723999853526,-1174.98,0.00016712,2]
[335231393,1723999853535,-151.0,0.00016712,2]
[335231394,1723999853544,-151.0,0.00016712,2]
[335231395,1723999853553,-903.055524,0.00016712,2]
[335231396,1723999853562,-903.055524,0.00016712,2]
[335231397,1723999853571,-500.0,0.00016712,2]
[335231398,1723999853580,-1847.89,0.00016712,2]
[335231399,1723999853589,-1303.51,0.00016712,2]
[335231400,1723999853598,-500.0,0.00016712,2]
[335231401,1723999853607,-903.055524,0.00016712,2]
[335231402,1723999853616,-903.055524,0.00016712,2]
[335231403,1723999853624,-543.22,0.00016712,2]
[335231404,1723999853633,-1003.47,0.00016712,2]
[335231405,1723999853643,-2689.38,0.00016712,2]
[335231406,1723999853652,-826.89,0.00016712,2]
[335231407,1723999853660,-313.130358,0.00016712,2]
[335231408,1723999853669,-313.130358,0.00016712,2]
[335231409,1723999853678,-1266.47,0.00016712,2]
[335231410,1723999853687,-225.418361,0.00016712,2]
[335231411,1723999853697,-500.0,0.00016712,2]
[335231412,1723999853706,-500.0,0.00016712,2]
[335231413,1723999853716,-552.27929158,0.00016712,2]
[335231414,1723999853725,-500.0,0.00016712,2]
[335231415,1723999853735,-313.130358,0.00016712,2]
[335231416,1723999853744,-500.0,0.00016712,2]
[335231417,1723999853754,-313.130358,0.00016712,2]
[335231418,1723999853763,-168.93144031,0.00016712,2]
[335231419,1723999853773,-1777.184239,0.00016712,2]
[335231420,1723999853782,-1777.184239,0.00016712,2]
[335231421,1723999853791,-500.0,0.00016712,2]
[335231422,1723999853884,-500.0,0.00016712,2]
[335231423,1723999853895,-500.0,0.00016712,2]
[335231424,1723999853906,-500.0,0.00016712,2]
[335231425,1723999853917,-1080.316087,0.00016712,2]
[335231426,1723999853927,-1777.184239,0.00016712,2]
[335231427,1723999853938,-1080.316087,0.00016712,2]
[335231428,1723999853948,-1777.184239,0.00016712,2]
[335231429,1723999853959,-825.99,0.00016712,2]
[335231430,1723999853970,-543.53104022,0.00016712,2]
[335231431,1723999853980,-500.0,0.00016712,2]
[335231432,1723999853990,-1080.316087,0.00016712,2]
[335231433,1723999854001,-1080.316087,0.00016712,2]
[335231434,1723999854011,-505.48196032,0.00016712,2]
[335231435,1723999854020,-500.0,0.00016712,2]
[335231436,1723999854030,-500.0,0.00016712,2]
[335231437,1723999854039,-500.0,0.00016712,2]
[335231438,1723999854049,-502.74047752,0.00016712,2]
[335231439,1723999854058,-500.0,0.00016712,2]
[335231440,1723999854068,-573.99,0.00016712,2]
[335231441,1723999854078,-1100.84,0.00016712,2]
[335231442,1723999854087,-846.72,0.00016712,2]
[335231443,1723999854096,-512.01,0.00016712,2]
[335231444,1723999854107,-601.46,0.00016712,2]
[335231445,1723999854117,-500.0,0.00016712,2]
[335231446,1723999854126,-7055.48,0.00016712,2]
[335231447,1723999854135,-580.3,0.00016712,2]
[335231448,1723999854144,-500.0,0.00016712,2]
[335231449,1723999854154,-1457.872465,0.00016712,2]
[335231450,1723999854162,-1457.872465,0.00016712,2]
[335231451,1723999854171,-506.11519574,0.00016712,2]
[335231452,1723999854181,-500.0,0.00016712,2]
[335231453,1723999854190,-638.39,0.00016712,2]
[335231454,1723999854200,-1110.84365,0.00016712,2]
[335231455,1723999854211,-1110.84365,0.00016712,2]
[335231456,1723999854225,-500.0,0.00016712,2]
[335231457,1723999854235,-1457.872465,0.00016712,2]
[335231458,1723999854247,-1457.872465,0.00016712,2]
[335231459,1723999854258,-1771.2,0.00016712,2]
[335231460,1723999854269,-212.899685,0.00016712,2]
[335231461,1723999854280,-1090.36,0.00016712,2]
[335231462,1723999854291,-212.899685,0.00016712,2]
[335231463,1723999854304,-1110.84365,0.00016712,2]
[335231464,1723999854316,-1110.84365,0.00016712,2]
[335231465,1723999854327,-500.0,0.00016712,2]
[335231466,1723999854337,-500.0,0.00016712,2]
[335231467,1723999854347,-558.25,0.00016712,2]
[335231468,1723999854357,-212.899685,0.00016712,2]
[335231469,1723999854366,-212.899685,0.00016712,2]
[335231470,1723999854376,-500.0,0.00016712,2]
[335231471,1723999854386,-500.0,0.00016712,2]
[335231472,1723999854398,-500.0,0.00016712,2]
[335231473,1723999854409,-500.0,0.00016712,2]
[335231474,1723999854421,-988.99,0.00016712,2]
[335231475,1723999854432,-500.0,0.00016712,2]
[335231476,1723999854442,-1019.02,0.00016712,2]
[335231477,1723999854451,-500.0,0.00016712,2]
[335231478,1723999854463,-500.0,0.00016712,2]
[335231479,1723999854473,-557.75,0.00016712,2]
[335231480,1723999854484,-500.0,0.00016712,2]
[335231481,1723999854496,-1180.26,0.00016712,2]
[335231482,1723999854506,-321.84816398,0.00016712,2]
[335231483,1723999854516,-651.65,0.00016712,2]
[335231484,1723999854526,-642.76,0.00016712,2]
[335231485,1723999854536,-500.0,0.00016712,2]
[335231486,1723999854545,-304.73344824,0.00016712,2]
[335231487,1723999854555,-500.0,0.00016712,2]
[335231488,1723999854564,-2766.47,0.00016712,2]
[335231489,1723999854574,-500.0,0.00016712,2]
[335231490,1723999854584,-500.0,0.00016712,2]
[335231491,1723999854595,-500.0,0.00016712,2]
[335231492,1723999854606,-500.0,0.00016712,2]
[335231493,1723999854617,-500.0,0.00016712,2]
[335231494,1723999854628,-426.90354338,0.00016712,2]
[335231495,1723999854638,-771.58,0.00016712,2]
[335231496,1723999854649,-500.0,0.00016712,2]
[335231497,1723999854660,-500.0,0.00016712,2]
[335231498,1723999854670,-500.0,0.00016712,2]
[335231499,1723999854681,-837.87,0.00016712,2]
[335231500,1723999854692,-500.0,0.00016712,2]
[335231501,1723999854703,-798.58,0.00016712,2]
[335231502,1723999854714,-500.0,0.00016712,2]
[335231503,1723999854724,-378.731163,0.00016712,2]
[335231504,1723999854733,-500.0,0.00016712,2]
[335231505,1723999854743,-378.731163,0.00016712,2]
[335231506,1723999854754,-500.0,0.00016712,2]
[335231507,1723999854765,-378.731163,0.00016712,2]
[335231508,1723999854776,-500.0,0.00016712,2]
[335231509,1723999854788,-378.731163,0.00016712,2]
[335231510,1723999854798,-699.72,0.00016712,2]
[335231511,1723999854807,-151.0,0.00016712,2]
[335231512,1723999854817,-151.0,0.00016712,2]
[335231513,1723999854827,-500.0,0.00016712,2]
[335231514,1723999854838,-500.0,0.00016712,2]
[335231515,1723999854848,-500.0,0.00016712,2]
[335231516,1723999854859,-919.11,0.00016712,2]
[335231517,1723999854871,-500.0,0.00016712,2]
[335231518,1723999854882,-500.0,0.00016712,2]
[335231519,1723999854893,-500.0,0.00016712,2]
[335231520,1723999854906,-151.0,0.00016712,2]
[335231521,1723999854916,-155.833677,0.00016712,2]
[335231522,1723999854926,-500.0,0.00016712,2]
[335231523,1723999854937,-500.0,0.00016712,2]
[335231524,1723999854947,-500.0,0.00016712,2]
[335231525,1723999854959,-524.49331253,0.00016712,2]
[335231526,1723999854972,-880.39,0.00016712,2]
[335231527,1723999854983,-1068.78,0.00016712,2]
[335231528,1723999854993,-1021.12,0.00016712,2]
[335231529,1723999855004,-1990.91,0.00016712,2]
[335231530,1723999855014,-500.0,0.00016712,2]
[335231531,1723999855023,-677.44,0.00016712,2]
[335231532,1723999855032,-500.0,0.00016712,2]
[335231533,1723999855042,-312.606967,0.00016712,2]
[335231534,1723999855051,-312.606967,0.00016712,2]